fUSD/lending_fUSD_20260414
["ID","MTS","AMOUNT","RATE_DAILY","PERIOD"]
[420477233,1776135047120,-500.0,0.00013699,2]
[420477234,1776135047142,-500.0,0.00013699,2]
[420477235,1776135047154,-500.0,0.00013699,2]
[420477236,1776135047170,-500.32247515,0.00013699,2]
[420477237,1776135047193,-500.0,0.00013699,2]
[420477238,1776135047203,-500.0,0.00013699,2]
[420477239,1776135047226,-500.0,0.00013699,2]
[420477240,1776135047235,-500.0,0.00013699,2]
[420477241,1776135047249,-500.38683501,0.00013699,2]
[420477242,1776135047271,-500.0,0.00013699,2]
[420477243,1776135047280,-500.0,0.00013699,2]
[420477244,1776135047290,-500.0,0.00013699,2]
[420477245,1776135047304,-500.0,0.00013699,2]
[420477246,1776135047316,-500.76768531,0.00013699,2]
[420477247,1776135047325,-500.7128052,0.00013699,2]
[420477248,1776135047336,-500.0,0.00013699,2]
[420477249,1776135047364,-500.0,0.00013699,2]
[420477250,1776135047373,-408.44799284,0.00013699,2]
[420477251,1776135047383,-500.0,0.00013699,2]
[420477252,1776135047413,-500.21996369,0.00013699,2]
[420477253,1776135047424,-500.64474422,0.00013699,2]
[420477254,1776135047449,-500.0,0.00013699,2]
[420477255,1776135047458,-500.56056141,0.00013699,2]
[420477256,1776135047475,-500.0,0.00013699,2]
[420477257,1776135047490,-475.0359768,0.00013699,2]
[420477258,1776135047500,-500.0,0.00013699,2]
[420477259,1776135047518,-500.0,0.00013699,2]
[420477260,1776135047535,-183.3,0.00013699,2]
[420477261,1776135047546,-1088.88341266,0.00013699,2]
[420477262,1776135047562,-786.6,0.00013699,2]
[420477263,1776135047576,-500.0,0.00013699,2]
[420477264,1776135047585,-500.0,0.00013699,2]
[420477265,1776135047602,-500.0,0.00013699,2]
[420477266,1776135047615,-500.0,0.00013699,2]
[420477267,1776135047627,-500.0,0.00013699,2]
[420477268,1776135047642,-500.0,0.00013699,2]
[420477269,1776135047656,-500.0,0.00013699,2]
[420477270,1776135047667,-500.0,0.00013699,2]
[420477271,1776135047678,-500.0,0.00013699,2]
[420477272,1776135047693,-500.0,0.00013699,2]
[420477273,1776135047713,-500.0,0.00013699,2]
[420477274,1776135047722,-500.0,0.00013699,2]
[420477275,1776135047733,-500.0,0.00013699,2]
[420477276,1776135047765,-500.0,0.00013699,2]
[420477277,1776135047775,-500.0,0.00013699,2]
[420477278,1776135047799,-500.0,0.00013699,2]
[420477279,1776135047817,-500.0,0.00013699,2]
[420477280,1776135047832,-500.0,0.00013699,2]
[420477281,1776135047844,-500.0,0.00013699,2]
[420477282,1776135047857,-500.0,0.00013699,2]
[420477283,1776135047873,-500.0,0.00013699,2]
[420477284,1776135047883,-500.0,0.00013699,2]
[420477285,1776135047899,-500.0,0.00013699,2]
[420477286,1776135047910,-500.0,0.00013699,2]
[420477287,1776135047923,-500.0,0.00013699,2]
[420477288,1776135047943,-256.24973708,0.00013699,2]
[420477289,1776135047958,-500.0,0.00013699,2]
[420477290,1776135047967,-500.0,0.00013699,2]
[420477291,1776135047982,-500.0,0.00013699,2]
[420477292,1776135047996,-500.0,0.00013699,2]
[420477293,1776135048006,-500.0,0.00013699,2]
[420477294,1776135048019,-500.0,0.00013699,2]
[420477295,1776135048041,-400.0,0.00013699,2]
[420477296,1776135048050,-500.0,0.00013699,2]
[420477297,1776135048066,-500.0,0.00013699,2]
[420477298,1776135048077,-500.0,0.00013699,2]
[420477299,1776135048091,-500.0,0.00013699,2]
[420477300,1776135048108,-150.0,0.00013699,2]
[420477301,1776135048118,-150.0,0.00013699,2]
[420477302,1776135048127,-150.0,0.00013699,2]
[420477303,1776135048143,-150.0,0.00013699,2]
[420477304,1776135048156,-150.0,0.00013699,2]
[420477305,1776135048165,-228.7563451,0.00013699,2]
[420477306,1776135048192,-2815.0,0.000137,2]
[420477307,1776135048201,-2815.0,0.000137,2]
[420477308,1776135048211,-9122.64,0.000137,2]
[420477309,1776135048239,-9122.64,0.000137,2]
[420477310,1776135048249,-150.0,0.00013712,2]
[420477311,1776135048263,-5888.0,0.00013724,2]
[420477312,1776135048278,-150.0,0.00013725,2]
[420477313,1776135048288,-346.0,0.00013726,2]
[420477314,1776135048297,-152.0,0.00013728,28]
[420477315,1776135048311,-150.0,0.00013737,2]
[420477316,1776135048329,-150.0,0.00013739,2]
[420477317,1776135048339,-150.0,0.00013759,2]
[420477318,1776135048348,-150.0,0.00013759,2]
[420477319,1776135048359,-472.65390337,0.0001376,2]
[420477320,1776135048374,-473.36164303,0.0001376,2]
[420477321,1776135048383,-150.0,0.00013765,2]
[420477322,1776135048393,-150.0,0.00013766,2]
[420477323,1776135048408,-150.0,0.00013774,2]
[420477324,1776135048420,-346.0,0.00013788,2]
[420477325,1776135048430,-261.30967032,0.00013789,2]
[420477326,1776135048444,-646.80568133,0.00013789,2]
[420477327,1776135048460,-150.0,0.0001379,2]
[420477328,1776135048470,-150.0,0.00013794,2]
[420477329,1776135048481,-150.0,0.00013794,2]
[420477330,1776135048501,-8456.61669396,0.00013794,2]
[420477331,1776135048524,-150.0,0.00013796,2]
[420477332,1776135048535,-346.0,0.00013802,2]
[420477333,1776135048560,-150.0,0.00013805,2]
[420477334,1776135048570,-150.0,0.00013812,2]
[420477335,1776135048586,-150.0,0.00013821,2]
[420477336,1776135048615,-150.0,0.00013823,2]
[420477337,1776135048625,-150.0,0.00013833,2]
[420477338,1776135048645,-166.66,0.00013836,2]
[420477339,1776135048680,-150.0,0.00013842,2]
[420477340,1776135048703,-150.0,0.00013845,2]
[420477341,1776135048727,-5888.0,0.00013845,2]
[420477342,1776135048736,-150.0,0.00013848,2]
[420477343,1776135048768,-152.0,0.00013856,29]
[420477344,1776135048791,-255.64150447,0.00013856,5]
[420477345,1776135048800,-150.0,0.00013864,2]
[420477346,1776135048814,-150.0,0.00013864,2]
[420477347,1776135048827,-150.0,0.00013871,2]
[420477348,1776135048850,-150.0,0.00013875,2]
[420477349,1776135048859,-150.0,0.00013885,2]
[420477350,1776135048877,-1788.60069275,0.00013889,2]
[420477351,1776135048886,-150.0,0.00013895,2]
[420477352,1776135048896,-5888.0,0.00013897,2]
[420477353,1776135048908,-5000.0,0.000139,2]
[420477354,1776135048928,-2200.0,0.000139,5]
[420477355,1776135048938,-150.0,0.00013902,2]
[420477356,1776135048948,-150.0,0.00013902,2]
[420477357,1776135048958,-150.0,0.00013908,2]
[420477358,1776135048976,-150.0,0.00013917,2]
[420477359,1776135048997,-5493.31710863,0.00013923,2]
[420477360,1776135049008,-150.0,0.00013925,2]
[420477361,1776135049025,-150.0,0.00013929,2]
[420477362,1776135049040,-150.0,0.00013945,2]
[420477363,1776135049064,-150.0,0.00013947,2]
[420477364,1776135049077,-414.75252378,0.00013951,2]
[420477365,1776135049102,-150.0,0.00013953,2]
[420477366,1776135049134,-150.0,0.00013956,2]
[420477367,1776135049156,-150.0,0.00013961,2]
[420477368,1776135049166,-150.0,0.00013965,2]
[420477369,1776135049180,-862.0,0.00013967,2]
[420477370,1776135049198,-240.0,0.00013967,2]
[420477371,1776135049224,-1114.0,0.00013967,2]
[420477372,1776135049233,-4707.0,0.00013967,2]
[420477373,1776135049259,-2693.0,0.00013967,2]
[420477374,1776135049286,-150.0,0.0001397,2]
[420477375,1776135049312,-166.66,0.00013973,2]
[420477376,1776135049324,-786.6,0.00013973,2]
[420477377,1776135049334,-167.26237311,0.00013975,2]
[420477378,1776135049369,-150.0,0.00013983,2]
[420477379,1776135049381,-150.0,0.00013984,2]
[420477380,1776135049403,-150.0,0.00013989,2]
[420477381,1776135049417,-1578.54710113,0.0001399,2]
[420477382,1776135049439,-150.0,0.00014,2]
[420477383,1776135049475,-2125.81,0.00014,2]
[420477384,1776135049505,-150.0,0.00014005,2]
[420477385,1776135049516,-150.0,0.00014011,2]
[420477386,1776135049530,-150.0,0.00014011,2]
[420477387,1776135049558,-150.0,0.0001402,2]
[420477388,1776135049579,-1575.0,0.0001402,2]
[420477389,1776135049589,-1575.0,0.0001402,2]
[420477390,1776135049599,-1572.0,0.0001402,2]
[420477391,1776135049620,-150.0,0.00014022,2]
[420477392,1776135049630,-150.0,0.00014038,2]
[420477393,1776135049640,-233.51889341,0.00014042,2]
[420477394,1776135049658,-150.0,0.00014043,2]
[420477395,1776135049667,-150.0,0.00014045,2]
[420477396,1776135049677,-5888.0,0.00014048,2]
[420477397,1776135049694,-150.0,0.00014052,2]
[420477398,1776135049708,-150.0,0.00014057,2]
[420477399,1776135049718,-5888.0,0.00014059,2]
[420477400,1776135049733,-150.0,0.00014065,2]
[420477401,1776135049751,-971.22660333,0.00014071,2]
[420477402,1776135049767,-938.96126852,0.00014071,2]
[420477403,1776135049797,-200.0,0.00014071,2]
[420477404,1776135049809,-982.56,0.00014071,2]
[420477405,1776135049818,-5888.0,0.00014072,2]
[420477406,1776135049831,-150.0,0.00014075,2]
[420477407,1776135049850,-150.0,0.00014085,2]
[420477408,1776135049862,-150.0,0.00014092,2]
[420477409,1776135049872,-150.0,0.00014094,2]
[420477410,1776135049890,-150.0,0.000141,2]
[420477411,1776135049899,-2815.0,0.000141,2]
[420477412,1776135049909,-150.0,0.00014104,2]
[420477413,1776135049922,-19399.81590508,0.00014106,2]
[420477414,1776135049933,-199.93007146,0.00014106,2]
[420477415,1776135049949,-166.66,0.0001411,2]
[420477416,1776135049960,-150.0,0.00014119,2]
[420477417,1776135049969,-150.0,0.00014119,2]
[420477418,1776135049985,-150.0,0.00014125,2]
[420477419,1776135049995,-150.0,0.00014128,2]
[420477420,1776135050004,-150.0,0.00014132,2]
[420477421,1776135050015,-150.0,0.00014132,2]
[420477422,1776135050047,-477.72,0.00014133,2]
[420477423,1776135050057,-477.72,0.00014133,2]
[420477424,1776135050079,-150.0,0.00014137,2]
[420477425,1776135050090,-217.0,0.0001414,3]
[420477426,1776135050098,-150.0,0.00014147,2]
[420477427,1776135050124,-200.61128534,0.0001415,2]
[420477428,1776135050136,-150.0,0.00014157,2]
[420477429,1776135050145,-150.0,0.00014165,2]
[420477430,1776135050171,-150.0,0.00014169,2]
[420477431,1776135050182,-150.0,0.00014174,2]
[420477432,1776135050195,-150.0,0.00014181,2]
[420477433,1776135050207,-150.0,0.00014192,2]
[420477434,1776135050218,-166.60736583,0.000142,2]
[420477435,1776135050230,-150.0,0.00014201,2]
[420477436,1776135050260,-150.0,0.00014205,2]
[420477437,1776135050269,-5888.0,0.00014206,2]
[420477438,1776135050283,-150.0,0.00014206,2]
[420477439,1776135050302,-150.0,0.00014209,2]
[420477440,1776135050314,-150.0,0.00014222,2]
[420477441,1776135050323,-150.0,0.00014228,2]
[420477442,1776135050344,-150.0,0.00014228,2]
[420477443,1776135050363,-150.0,0.00014233,2]
[420477444,1776135050376,-150.0,0.00014238,2]
[420477445,1776135050385,-150.0,0.00014244,2]
[420477446,1776135050395,-533.65097546,0.00014244,2]
[420477447,1776135050411,-150.0,0.00014245,2]
[420477448,1776135050422,-166.66,0.00014247,2]
[420477449,1776135050431,-501.18642033,0.00014247,2]
[420477450,1776135050454,-1022.32027585,0.00014247,2]
[420477451,1776135050463,-1000.0,0.00014247,2]
[420477452,1776135050474,-1001.58633668,0.00014247,2]
[420477453,1776135050487,-1000.78234559,0.00014247,2]
[420477454,1776135050501,-1000.0,0.00014247,2]
[420477455,1776135050512,-1000.0,0.00014247,2]
[420477456,1776135050525,-1000.0,0.00014247,2]
[420477457,1776135050549,-1000.0,0.00014247,2]
[420477458,1776135050559,-1000.0,0.00014247,2]
[420477459,1776135050579,-500.83400253,0.00014247,2]
[420477460,1776135050608,-1000.78802709,0.00014247,2]
[420477461,1776135050618,-1001.61169891,0.00014247,2]
[420477462,1776135050627,-1000.0,0.00014247,2]
[420477463,1776135050657,-1000.0,0.00014247,2]
[420477464,1776135050667,-352.68513911,0.00014247,2]
[420477465,1776135050689,-933.20579435,0.00014247,2]
[420477466,1776135050704,-505.30984507,0.00014247,2]
[420477467,1776135050714,-1000.0,0.00014247,2]
[420477468,1776135050732,-1000.0,0.00014247,2]
[420477469,1776135050744,-1000.0,0.00014247,2]
[420477470,1776135050754,-786.6,0.00014247,2]
[420477471,1776135050766,-5888.0,0.00014252,2]
[420477472,1776135050788,-150.0,0.00014255,2]
[420477473,1776135050798,-150.0,0.0001426,2]
[420477474,1776135050812,-150.0,0.00014262,2]
[420477475,1776135050833,-669.0,0.00014268,2]
[420477476,1776135050846,-801.0,0.00014268,2]
[420477477,1776135050856,-2016.0,0.00014268,2]
[420477478,1776135050887,-1064.0,0.00014268,2]
[420477479,1776135050903,-985.0,0.00014268,2]
[420477480,1776135050919,-265.53322785,0.00014269,2]
[420477481,1776135050940,-168.5,0.00014281,2]
[420477482,1776135050959,-168.5,0.00014281,2]
[420477483,1776135050970,-150.0,0.00014281,2]
[420477484,1776135050988,-150.0,0.00014282,2]
[420477485,1776135051003,-150.0,0.00014285,2]
[420477486,1776135051028,-150.0,0.00014286,2]
[420477487,1776135051040,-150.0,0.00014293,2]
[420477488,1776135051050,-150.0,0.00014309,2]
[420477489,1776135051066,-150.0,0.00014311,2]
[420477490,1776135051080,-150.0,0.00014314,2]
[420477491,1776135051089,-150.0,0.00014318,2]
[420477492,1776135051101,-283.5897667,0.0001432,2]
[420477493,1776135051111,-150.0,0.00014325,2]
[420477494,1776135051120,-150.0,0.00014337,2]
[420477495,1776135051136,-150.0,0.00014337,2]
[420477496,1776135051146,-150.0,0.00014339,2]
[420477497,1776135051155,-2815.0,0.0001434,2]
[420477498,1776135051177,-150.0,0.00014342,2]
[420477499,1776135051186,-293.8791773,0.00014352,2]
[420477500,1776135051206,-150.0,0.00014355,2]
[420477501,1776135051216,-150.0,0.00014364,2]
[420477502,1776135051236,-150.0,0.00014365,2]
[420477503,1776135051246,-150.0,0.00014367,2]
[420477504,1776135051268,-300.0,0.00014374,2]
[420477505,1776135051280,-666.0,0.00014374,2]
[420477506,1776135051307,-303.12295336,0.00014374,2]
[420477507,1776135051316,-670.00043295,0.00014374,2]
[420477508,1776135051345,-500.0,0.00014375,2]
[420477509,1776135051354,-500.0,0.00014375,2]
[420477510,1776135051380,-150.0,0.00014376,2]
[420477511,1776135051389,-300.0,0.00014378,2]
[420477512,1776135051400,-300.0,0.00014383,2]
[420477513,1776135051421,-1746.9,0.00014384,2]
[420477514,1776135051431,-166.66,0.00014384,2]
[420477515,1776135051441,-9970.41873671,0.0001439,2]
[420477516,1776135051461,-150.0,0.00014391,2]
[420477517,1776135051474,-150.0,0.00014391,2]
[420477518,1776135051485,-150.0,0.00014393,2]
[420477519,1776135051510,-150.0,0.000144,2]
[420477520,1776135051542,-150.0,0.00014405,2]
[420477521,1776135051554,-150.0,0.00014418,2]
[420477522,1776135051592,-150.0,0.00014419,2]
[420477523,1776135051609,-150.0,0.00014425,2]
[420477524,1776135051633,-150.0,0.0001443,2]
[420477525,1776135051642,-150.0,0.00014444,2]
[420477526,1776135051678,-150.0,0.00014445,2]
[420477527,1776135051688,-150.0,0.00014445,2]
[420477528,1776135051706,-150.0,0.00014445,2]
[420477529,1776135051716,-359.56003701,0.00014447,2]
[420477530,1776135051725,-276.20858896,0.00014447,2]
[420477531,1776135051734,-150.0,0.00014466,2]
[420477532,1776135051750,-150.0,0.00014467,2]
[420477533,1776135051764,-150.0,0.00014471,2]
[420477534,1776135051774,-150.0,0.00014472,2]
[420477535,1776135051784,-150.0,0.00014485,2]
[420477536,1776135051795,-300.0,0.00014485,2]
[420477537,1776135051805,-150.0,0.0001449,2]
[420477538,1776135051815,-150.0,0.00014497,2]
[420477539,1776135051826,-8456.61669396,0.00014497,2]
[420477540,1776135051835,-150.0,0.000145,2]
[420477541,1776135051846,-2900.0,0.000145,5]
[420477542,1776135051857,-150.0,0.00014505,2]
[420477543,1776135051866,-150.0,0.00014514,2]
[420477544,1776135051881,-150.00000001,0.0001452,2]
[420477545,1776135051894,-786.6,0.00014521,2]
[420477546,1776135051905,-150.0,0.00014524,2]
[420477547,1776135051917,-150.0,0.00014525,2]
[420477548,1776135051934,-150.0,0.00014527,2]
[420477549,1776135051955,-204.60795255,0.0001453,2]
[420477550,1776135051982,-178.80285994,0.00014536,2]
[420477551,1776135051993,-150.0,0.00014542,2]
[420477552,1776135052020,-150.0,0.00014548,2]
[420477553,1776135052033,-150.0,0.0001455,2]
[420477554,1776135052064,-150.0,0.00014554,2]
[420477555,1776135052078,-150.0,0.00014554,2]
[420477556,1776135052092,-5493.31710863,0.00014562,2]
[420477557,1776135052115,-150.0,0.00014565,2]
[420477558,1776135052128,-214.11110366,0.00014567,2]
[420477559,1776135052172,-165.44641492,0.00014567,2]
[420477560,1776135052186,-258.35102735,0.00014571,2]
[420477561,1776135052229,-473.65955868,0.00014574,2]
[420477562,1776135052244,-150.0,0.00014576,2]
[420477563,1776135052272,-5888.0,0.00014576,2]
[420477564,1776135052296,-150.0,0.00014579,2]
[420477565,1776135052317,-150.0,0.00014579,2]
[420477566,1776135052354,-150.0,0.00014581,2]
[420477567,1776135052375,-1400.0,0.00014582,2]
[420477568,1776135052391,-2400.0,0.00014582,2]
[420477569,1776135052405,-150.0,0.00014589,2]
[420477570,1776135052419,-242.15909246,0.0001459,2]
[420477571,1776135052445,-150.0,0.00014597,2]
[420477572,1776135052456,-150.00000001,0.00014597,2]
[420477573,1776135052468,-3700.0,0.000146,5]
[420477574,1776135052498,-150.0,0.00014602,2]
[420477575,1776135052508,-150.0,0.00014605,2]
[420477576,1776135052523,-150.0,0.00014606,2]
[420477577,1776135052538,-150.0,0.00014608,2]
[420477578,1776135052548,-500.0,0.0001461,2]
[420477579,1776135052558,-453.30718507,0.0001461,2]
[420477580,1776135052577,-500.0,0.0001461,2]
[420477581,1776135052588,-500.0,0.0001461,2]
[420477582,1776135052943,-500.0,0.0001461,2]
[420477583,1776135052965,-5888.0,0.00014611,2]
[420477584,1776135052996,-150.0,0.00014617,2]
[420477585,1776135053007,-1980.86482311,0.00014619,2]
[420477586,1776135053020,-200.0,0.00014619,2]
[420477587,1776135053042,-150.0,0.00014629,2]
[420477588,1776135053052,-150.0,0.0001463,2]
[420477589,1776135053063,-150.0,0.00014635,2]
[420477590,1776135053085,-150.0,0.00014645,2]
[420477591,1776135053095,-232.20812728,0.00014651,7]
[420477592,1776135053109,-150.0,0.00014653,2]
[420477593,1776135053127,-19399.81590508,0.00014653,2]
[420477594,1776135053137,-150.0,0.00014654,2]
[420477595,1776135053152,-150.0,0.00014655,2]
[420477596,1776135053167,-1575.0,0.0001466,2]
[420477597,1776135053176,-150.0,0.00014662,2]
[420477598,1776135053186,-150.0,0.00014662,2]
[420477599,1776135053198,-150.0,0.00014669,2]
[420477600,1776135053210,-150.0,0.00014671,2]
[420477601,1776135053222,-150.0,0.00014681,2]
[420477602,1776135053241,-150.0,0.00014685,2]
[420477603,1776135053253,-150.0,0.0001469,2]
[420477604,1776135053268,-150.0,0.00014691,2]
[420477605,1776135053278,-150.0,0.00014699,2]
[420477606,1776135053291,-160.0,0.000147,2]
[420477607,1776135053301,-700.0,0.000147,5]
[420477608,1776135053321,-150.0,0.00014708,2]
[420477609,1776135053333,-507.0,0.00014709,3]
[420477610,1776135053357,-150.0,0.00014712,2]
[420477611,1776135053367,-341.23158527,0.00014712,2]
[420477612,1776135053384,-150.0,0.00014717,2]
[420477613,1776135053426,-150.0,0.00014725,2]
[420477614,1776135053437,-150.0,0.00014728,2]
[420477615,1776135053453,-150.0,0.00014734,2]
[420477616,1776135053485,-150.0,0.00014744,2]
[420477617,1776135053511,-150.0,0.00014753,2]
[420477618,1776135053531,-150.0,0.00014758,2]
[420477619,1776135053549,-150.0,0.00014761,2]
[420477620,1776135053574,-150.0,0.00014765,2]
[420477621,1776135053588,-150.0,0.00014766,2]
[420477622,1776135053599,-150.0,0.00014771,2]
[420477623,1776135053625,-150.0,0.00014771,2]
[420477624,1776135053636,-500.0,0.00014784,5]
[420477625,1776135053647,-150.0,0.00014786,2]
[420477626,1776135053666,-150.0,0.00014791,2]
[420477627,1776135053686,-5888.0,0.00014792,2]
[420477628,1776135053697,-5888.0,0.00014793,2]
[420477629,1776135053714,-150.0,0.00014795,2]
[420477630,1776135053725,-250.0,0.00014795,2]
[420477631,1776135053740,-1000.0,0.00014795,2]
[420477632,1776135053754,-263.8,0.00014795,2]
[420477633,1776135053765,-1001.4473534,0.00014795,2]
[420477634,1776135053781,-1500.0,0.00014795,2]
[420477635,1776135053807,-1501.00643434,0.00014795,2]
[420477636,1776135053818,-505.30331655,0.00014795,2]
[420477637,1776135053829,-1501.50619118,0.00014795,2]
[420477638,1776135053854,-762.02008499,0.00014795,2]
[420477639,1776135053884,-1500.0,0.00014795,2]
[420477640,1776135053946,-1500.0,0.00014795,2]
[420477641,1776135054021,-1500.0,0.00014795,2]
[420477642,1776135054042,-1001.87259391,0.00014795,2]
[420477643,1776135054052,-786.6,0.00014795,2]
[420477644,1776135054062,-217.0,0.00014795,3]
[420477645,1776135054076,-150.0,0.00014798,2]
[420477646,1776135054086,-304.1044,0.000148,2]
[420477647,1776135054098,-700.0,0.000148,5]
[420477648,1776135054110,-150.0,0.00014803,2]
[420477649,1776135054130,-162.0,0.00014805,2]
[420477650,1776135054140,-150.0,0.00014805,2]
[420477651,1776135054150,-150.0,0.00014813,2]
[420477652,1776135054171,-150.0,0.00014825,2]
[420477653,1776135054181,-150.0,0.00014836,2]
[420477654,1776135054191,-150.0,0.00014838,2]
[420477655,1776135054213,-150.0,0.0001484,2]
[420477656,1776135054223,-150.0,0.00014845,2]
[420477657,1776135054235,-150.0,0.00014848,2]
[420477658,1776135054261,-347.81035114,0.0001485,2]
[420477659,1776135054271,-150.0,0.00014852,2]
[420477660,1776135054287,-12376.13,0.0001486,2]
[420477661,1776135054323,-2406.77,0.0001486,2]
[420477662,1776135054334,-1389.25,0.0001486,2]
[420477663,1776135054345,-1178.33,0.0001486,2]
[420477664,1776135054369,-331.34690746,0.00014862,2]
[420477665,1776135054379,-150.0,0.00014866,2]
[420477666,1776135054398,-150.0,0.00014877,2]
[420477667,1776135054418,-150.0,0.00014878,2]
[420477668,1776135054429,-5888.0,0.0001488,2]
[420477669,1776135054444,-150.0,0.0001488,2]
[420477670,1776135054463,-150.0,0.0001488,2]
[420477671,1776135054474,-150.0,0.00014885,2]
[420477672,1776135054488,-156.0,0.00014889,3]
[420477673,1776135054506,-150.0,0.00014891,2]
[420477674,1776135054534,-241.58808524,0.00014894,2]
[420477675,1776135054545,-160.0,0.000149,2]
[420477676,1776135054564,-160.0,0.000149,2]
[420477677,1776135054582,-160.0,0.000149,2]
[420477678,1776135054597,-160.0,0.000149,2]
[420477679,1776135054613,-700.0,0.000149,5]
[420477680,1776135054629,-150.0,0.00014901,2]
[420477681,1776135054644,-150.0,0.00014907,2]
[420477682,1776135054679,-150.0,0.00014915,2]
[420477683,1776135054690,-150.0,0.00014918,2]
[420477684,1776135054725,-150.0,0.00014919,2]
[420477685,1776135054738,-150.0,0.00014925,2]
[420477686,1776135054762,-150.0,0.00014929,2]
[420477687,1776135054775,-150.0,0.00014934,2]
[420477688,1776135054790,-150.0,0.00014937,2]
[420477689,1776135054817,-150.0,0.00014943,2]
[420477690,1776135054832,-150.0,0.00014952,2]
[420477691,1776135054864,-150.0,0.00014959,2]
[420477692,1776135054874,-150.0,0.00014961,2]
[420477693,1776135054921,-150.0,0.00014965,2]
[420477694,1776135054964,-862.0,0.00014967,2]
[420477695,1776135054974,-240.0,0.00014967,2]
[420477696,1776135054986,-1114.0,0.00014967,2]
[420477697,1776135054999,-4707.0,0.00014967,2]
[420477698,1776135055028,-2693.0,0.00014967,2]
[420477699,1776135055039,-150.0,0.00014971,2]
[420477700,1776135055055,-162.0,0.0001498,2]
[420477701,1776135055085,-150.0,0.00014988,2]
[420477702,1776135055096,-150.0,0.00014988,2]
[420477703,1776135055115,-150.0,0.00014989,2]
[420477704,1776135055126,-630.03878788,0.00014994,2]
[420477705,1776135055140,-150.0,0.00014996,2]
[420477706,1776135055154,-982.56,0.00014999,2]
[420477707,1776135055165,-8055.32042713,0.00015,2]
[420477708,1776135055178,-1103.0874692,0.00015,2]
[420477709,1776135055194,-37567.65244212,0.00015,7]
[420477710,1776135055205,-2645.0,0.00015,2]
[420477711,1776135055219,-611.0,0.00015,2]
[420477712,1776135055251,-300.0,0.00015,2]
[420477713,1776135055262,-150.0,0.00015,2]
[420477714,1776135055279,-1728.92264373,0.00015,2]
[420477715,1776135055295,-150.0,0.00015005,2]
[420477716,1776135055306,-2815.0,0.00015008,2]
[420477717,1776135055325,-150.0,0.00015015,2]
[420477718,1776135055350,-150.0,0.00015024,2]
[420477719,1776135055363,-150.0,0.00015027,2]
[420477720,1776135055398,-150.0,0.00015027,2]
[420477721,1776135055409,-621.78829552,0.00015033,2]
[420477722,1776135055423,-173.26897625,0.00015034,2]
[420477723,1776135055447,-150.0,0.00015041,2]
[420477724,1776135055458,-150.0,0.00015043,2]
[420477725,1776135055489,-150.0,0.00015045,2]
[420477726,1776135055502,-150.0,0.00015048,2]
[420477727,1776135055525,-150.0,0.00015064,2]
[420477728,1776135055538,-150.0,0.00015067,2]
[420477729,1776135055549,-986.73,0.00015068,2]
[420477730,1776135055580,-786.13,0.00015068,2]
[420477731,1776135055591,-1746.9,0.00015068,2]
[420477732,1776135055607,-666.29,0.00015068,2]